bitfinex/quotes_BTCUSD_20240717
["timestamp","ask_amount","ask_price","bid_price","bid_amount"]
[1721232540062,1.93592402,64653.0,64652.0,0.00706874]
[1721232540190,1.92192402,64653.0,64652.0,0.00706874]
[1721232540596,1.27134928,64653.0,64652.0,0.00706874]
[1721232540841,1.12644205,64653.0,64652.0,0.00706874]
[1721232541453,1.43517336,64653.0,64652.0,0.00706874]
[1721232541654,1.27882379,64653.0,64652.0,0.00706874]
[1721232541805,1.58816679,64653.0,64652.0,0.00706874]
[1721232542029,1.27882379,64653.0,64652.0,0.00706874]
[1721232542233,1.12444205,64653.0,64652.0,0.00706874]
[1721232542633,1.20144205,64653.0,64652.0,0.00706874]
[1721232543733,1.20144205,64653.0,64652.0,0.22744274]
[1721232543734,0.02074205,64653.0,64652.0,0.22744274]
[1721232543927,0.02074205,64653.0,64652.0,0.74426554]
[1721232544201,0.02074205,64653.0,64652.0,0.22715048]
[1721232544614,0.01174205,64653.0,64652.0,0.69117248]
[1721232544815,0.309306,64661.0,64653.0,0.154669]
[1721232545023,0.309302,64662.0,64654.0,0.15438174]
[1721232545232,0.154658,64659.0,64654.0,0.15438174]
[1721232545452,0.002794,64679.0,64654.0,0.00028384]
[1721232545640,0.154665,64656.0,64654.0,0.00028385]
[1721232545842,0.154667,64655.0,64654.0,0.00028385]
[1721232546694,0.1,64671.0,64656.0,0.154663]
[1721232546910,0.309205,64682.0,64657.0,0.15438174]
[1721232547109,0.07717479,64693.0,64665.0,0.154643]
[1721232547110,0.30925,64673.0,64665.0,0.154643]
[1721232547313,0.154624,64673.0,64665.0,0.00028386]
[1721232547523,0.002794,64692.0,64666.0,0.154639]
[1721232547524,0.46584271,64692.0,64666.0,0.154639]
[1721232547726,0.309234,64676.0,64667.0,0.15772842]
[1721232547935,0.309245,64674.0,64667.0,0.00028386]
[1721232548148,0.154624,64673.0,64667.0,0.15801329]
[1721232548369,0.002794,64688.0,64670.0,0.15463]
[1721232548574,0.002794,64685.0,64670.0,0.00028387]
[1721232548765,0.15463,64671.0,64670.0,0.00028387]
[1721232549201,0.154628,64671.0,64670.0,0.00028387]
[1721232549626,0.463885,64671.0,64670.0,0.00028387]
[1721232549830,0.001,64676.0,64671.0,0.154627]
[1721232550067,0.001,64676.0,64670.0,0.15566561]
[1721232550276,0.154619,64675.0,64670.0,0.15566561]
[1721232550522,0.154619,64675.0,64670.0,0.30929561]
[1721232550726,0.001,64671.0,64670.0,0.31629561]
[1721232550927,0.001,64671.0,64670.0,0.16166561]
[1721232551383,0.001,64671.0,64670.0,1.13121286]
[1721232551604,0.001,64676.0,64675.0,0.513857]
[1721232551810,0.07717479,64699.0,64675.0,0.513857]
[1721232551811,0.154586,64689.0,64682.0,0.309204]
[1721232552015,0.154586,64689.0,64681.0,0.05]
[1721232552016,0.46304871,64688.0,64684.0,0.0608]
[1721232552219,0.154589,64688.0,64684.0,0.0608]
[1721232552625,0.154579,64692.0,64687.0,0.15459]
[1721232552840,0.002794,64707.0,64691.0,0.05]
[1721232553045,0.002794,64707.0,64684.0,0.0608]
[1721232553046,0.154545,64706.0,64702.0,0.154554]
[1721232553264,0.30907,64711.0,64705.0,0.0608]
[1721232553480,0.46388379,64724.0,64705.0,0.0608]
[1721232553481,0.154543,64707.0,64705.0,0.0608]
[1721232553748,0.15487479,64724.0,64711.0,0.154531]
[1721232553749,0.155362,64716.0,64711.0,0.154531]
[1721232553960,0.0777,64735.0,64711.0,0.154531]
[1721232553961,0.61754671,64726.0,64712.0,0.15423263]
[1721232554212,0.154492,64728.0,64722.0,0.154505]
[1721232554423,0.00836,64736.0,64713.0,0.15438174]
[1721232554424,0.15451,64721.0,64713.0,0.15438174]
[1721232554639,0.07717479,64733.0,64713.0,0.15438174]
[1721232554843,0.154488,64730.0,64725.0,0.154499]
[1721232555069,0.154492,64728.0,64723.0,0.154502]
[1721232555280,0.00836,64736.0,64726.0,0.15438174]
[1721232555488,0.00836,64736.0,64735.0,0.154475]
[1721232555700,0.00836,64736.0,64724.0,0.0608]
[1721232555701,0.00836,64736.0,64724.0,1.5608]
[1721232555913,0.154499,64725.0,64724.0,0.0608]
[1721232556119,0.07717479,64733.0,64724.0,0.0608]
[1721232556345,0.308974,64731.0,64724.0,0.0608]
[1721232556557,0.00836,64736.0,64724.0,0.0608]
[1721232556786,0.308957,64734.0,64726.0,0.001]
[1721232557006,0.154486,64731.0,64726.0,0.001]
[1721232557210,0.154486,64731.0,64727.0,0.15438174]
[1721232557434,0.154499,64725.0,64724.0,0.0608]
[1721232557680,0.154499,64725.0,64703.0,0.3261]
[1721232557681,0.154516,64718.0,64717.0,0.0616]
[1721232558520,0.154516,64718.0,64714.0,0.0833]
[1721232558521,0.154523,64715.0,64714.0,0.0833]
[1721232558728,0.463591,64712.0,64711.0,0.0616]
[1721232558966,0.15453,64712.0,64711.0,0.0616]
[1721232559197,0.154522,64716.0,64711.0,0.216132]
[1721232559403,0.1,64732.0,64713.0,0.309055]
[1721232559606,0.001,64718.0,64717.0,0.322033]
[1721232559808,0.001,64718.0,64717.0,1.01566974]
[1721232560238,0.324311,64736.0,64725.0,0.154498]
[1721232560239,0.154486,64731.0,64725.0,0.154498]
[1721232560461,0.154486,64731.0,64717.0,0.60531474]
[1721232560462,0.002794,64734.0,64730.0,0.0662]
[1721232560659,0.00836,64736.0,64731.0,0.23317101]
[1721232560865,0.162834,64736.0,64732.0,0.00308918]
[1721232561108,0.162834,64736.0,64731.0,0.23008174]
[1721232561109,0.154477,64735.0,64733.0,0.15438174]
[1721232561316,0.00836,64736.0,64735.0,0.154475]
[1721232561530,0.00836,64736.0,64731.0,0.0757]
[1721232561701,0.005,64734.0,64732.0,0.15438174]
[1721232562153,0.162834,64736.0,64732.0,0.15438174]
[1721232562331,0.162834,64736.0,64733.0,0.001]
[1721232562557,0.00836,64736.0,64734.0,0.15438174]
[1721232562898,0.154483,64732.0,64731.0,0.0757]
[1721232563096,0.309957,64734.0,64730.0,0.0662]
[1721232563097,0.154485,64731.0,64730.0,0.0662]
[1721232563343,0.772425,64731.0,64730.0,0.0662]
[1721232563550,0.002,64734.0,64724.0,0.0831]
[1721232563551,0.463498,64725.0,64724.0,0.0831]
[1721232563782,0.463498,64725.0,64724.0,0.23748174]
[1721232564104,0.308982,64729.0,64724.0,0.23748174]
[1721232564308,0.154495,64727.0,64724.0,0.23748174]
[1721232564519,0.154499,64725.0,64724.0,0.23748174]
[1721232564744,0.772497,64725.0,64724.0,0.23748174]
[1721232564949,0.07717479,64730.0,64715.0,0.0618]
[1721232565161,0.463555,64717.0,64716.0,0.15438174]
[1721232565614,0.463555,64717.0,64716.0,0.00028384]
[1721232565833,0.772592,64717.0,64716.0,0.00028384]
[1721232566047,1.081629,64717.0,64716.0,0.00028384]
[1721232566691,1.181629,64717.0,64716.0,0.00028384]
[1721232566904,1.181629,64717.0,64716.0,0.00128384]
[1721232567113,1.49780075,64717.0,64716.0,0.00128384]
[1721232567329,1.18876375,64717.0,64716.0,0.00128384]
[1721232567521,1.18976375,64717.0,64716.0,0.00628384]
[1721232567729,1.18876375,64717.0,64716.0,0.00128384]
[1721232568157,0.88572675,64717.0,64716.0,0.00128384]
[1721232568372,0.88572675,64717.0,64716.0,0.00028384]
[1721232568614,0.89972675,64717.0,64716.0,0.00128384]
[1721232568811,1.21476375,64717.0,64716.0,0.00228384]
[1721232568964,1.20876375,64717.0,64716.0,0.00128384]
[1721232569203,1.20876375,64717.0,64716.0,0.00028384]
[1721232569204,1.19476375,64717.0,64716.0,0.00028384]
[1721232569431,1.20676375,64717.0,64716.0,0.00228384]
[1721232569810,1.36114549,64717.0,64716.0,0.00228384]
[1721232570034,1.37814549,64717.0,64716.0,0.00128384]
[1721232570234,1.84153206,64717.0,64716.0,0.00128384]
[1721232570482,1.76858249,64717.0,64716.0,0.00128384]
[1721232570612,1.75658249,64717.0,64716.0,0.00028384]
[1721232570820,1.76258249,64717.0,64716.0,0.00128384]
[1721232571223,1.75544774,64717.0,64716.0,0.00028384]
[1721232572637,1.193629,64717.0,64716.0,0.00128384]
[1721232573086,1.199629,64717.0,64716.0,0.00228384]
[1721232573313,1.199629,64717.0,64716.0,0.00128384]
[1721232573314,1.193629,64717.0,64716.0,0.00128384]
[1721232573728,1.193629,64717.0,64716.0,0.00028384]
[1721232573729,1.181629,64717.0,64716.0,0.00028384]
[1721232574182,0.886592,64717.0,64716.0,0.00028384]
[1721232574393,0.872592,64717.0,64716.0,0.00028384]
[1721232574603,0.014,64717.0,64716.0,0.00128384]
[1721232574815,0.173518,64717.0,64716.0,0.00128384]
[1721232575008,0.482555,64717.0,64716.0,0.00128384]
[1721232575220,0.468555,64717.0,64716.0,0.00028384]
[1721232575348,0.005,64717.0,64716.0,0.00128384]
[1721232575532,0.011,64717.0,64716.0,0.15566558]
[1721232575937,0.154511,64720.0,64716.0,0.15466558]
[1721232576204,0.154511,64720.0,64717.0,0.15438174]
[1721232576412,0.154483,64732.0,64726.0,0.154495]
[1721232576611,0.154486,64731.0,64727.0,0.064]
[1721232576848,0.00836,64736.0,64729.0,0.05]
[1721232577051,0.00836,64736.0,64730.0,0.15438174]
[1721232577257,0.00836,64736.0,64735.0,0.154475]
[1721232577464,0.00836,64736.0,64735.0,0.15438174]
[1721232577881,0.308957,64734.0,64728.0,0.0818]
[1721232578107,0.00836,64736.0,64728.0,0.23618174]
[1721232578321,0.463329,64749.0,64743.0,0.154455]
[1721232578520,0.463329,64749.0,64729.0,0.23537092]
[1721232578521,0.308813,64765.0,64749.0,0.308884]
[1721232578729,0.46304871,64760.0,64756.0,0.154424]
[1721232578934,0.308785,64770.0,64750.0,0.01402079]
[1721232579142,0.07717479,64758.0,64751.0,0.0633]
[1721232579626,0.07717479,64758.0,64744.0,0.0759]
[1721232579627,0.01,64749.0,64744.0,0.0759]
[1721232579836,0.154445,64748.0,64744.0,0.0759]
[1721232580069,0.01,64749.0,64744.0,0.0759]
[1721232580536,0.01,64749.0,64748.0,0.154444]
[1721232580756,0.01,64749.0,64746.0,0.308896]
[1721232580757,0.01,64749.0,64746.0,0.463343]
[1721232580965,0.154433,64753.0,64747.0,0.15438174]
[1721232581173,0.308862,64754.0,64750.0,0.003]
[1721232581424,0.154433,64753.0,64750.0,0.003]
[1721232581642,0.317187,64759.0,64750.0,0.003]
[1721232581643,0.00835,64759.0,64756.0,0.003]
[1721232581864,0.00835,64759.0,64756.0,0.157424]
[1721232582071,0.00835,64759.0,64758.0,0.154421]
[1721232582280,0.00835,64759.0,64758.0,0.15438174]
[1721232582740,0.011144,64781.0,64762.0,0.30882]
[1721232582741,0.46304871,64773.0,64762.0,0.30882]
[1721232582961,0.011144,64781.0,64763.0,0.15438174]
[1721232582962,0.308766,64774.0,64763.0,0.15438174]
[1721232583176,0.154389,64772.0,64765.0,0.154403]
[1721232583414,0.308739,64780.0,64772.0,0.154386]
[1721232583646,0.154372,64779.0,64772.0,0.154386]
[1721232583854,0.154378,64776.0,64768.0,0.308793]
[1721232584076,0.308789,64769.0,64758.0,0.1453]
[1721232584318,0.07717479,64775.0,64758.0,0.1453]
[1721232584319,0.154418,64759.0,64758.0,0.1453]
[1721232584531,0.772092,64759.0,64758.0,0.002]
[1721232585002,0.07717479,64764.0,64748.0,0.0002838]
[1721232585003,0.463327,64749.0,64748.0,0.0002838]
[1721232585222,0.772212,64749.0,64748.0,0.0002838]
[1721232585879,0.154442,64749.0,64748.0,0.0002838]
[1721232586312,0.308868,64753.0,64748.0,0.0002838]
[1721232586529,0.15444,64750.0,64748.0,0.0002838]
[1721232586756,0.308873,64752.0,64748.0,0.0002838]
[1721232586757,0.154438,64751.0,64748.0,0.0002838]
[1721232586986,0.154428,64755.0,64749.0,0.154441]
[1721232587195,0.154431,64754.0,64749.0,0.0002838]
[1721232587418,0.308854,64756.0,64750.0,0.15438174]
[1721232587635,0.1,64767.0,64751.0,0.308874]
[1721232587846,0.002794,64770.0,64756.0,0.154425]
[1721232587847,0.002794,64766.0,64756.0,0.154425]
[1721232588141,0.154414,64761.0,64757.0,0.15438174]
[1721232588351,0.15441,64763.0,64757.0,0.30880274]
[1721232588531,0.154409,64763.0,64757.0,0.15438174]
[1721232588975,0.154409,64763.0,64757.0,0.30880374]
[1721232589195,0.308819,64763.0,64757.0,0.15438174]
[1721232589421,0.006,64766.0,64757.0,0.15438174]
[1721232589625,0.154405,64765.0,64759.0,0.154416]
[1721232589836,0.006,64766.0,64760.0,0.00308806]
[1721232590058,0.006,64766.0,64759.0,0.15438174]
[1721232590291,0.006,64766.0,64761.0,0.308826]
[1721232590509,0.006,64766.0,64765.0,0.216204]
[1721232590714,0.006,64766.0,64765.0,0.76138125]
[1721232590927,0.006,64766.0,64765.0,1.07018925]
[1721232591141,0.00836,64791.0,64780.0,0.154368]
[1721232591142,0.002794,64782.0,64780.0,0.154368]
[1721232591399,0.00836,64791.0,64780.0,0.15438174]
[1721232591400,0.162706,64785.0,64780.0,0.15438174]
[1721232591604,0.00835,64785.0,64780.0,0.21618174]
[1721232591804,0.308724,64783.0,64780.0,0.0618]
[1721232592017,0.471448,64781.0,64780.0,0.0618]
[1721232592255,0.471448,64781.0,64769.0,0.0618]
[1721232592256,0.162717,64781.0,64769.0,0.0618]
[1721232592463,0.00835,64781.0,64770.0,0.15438174]
[1721232592672,0.00835,64781.0,64780.0,0.005]
[1721232592673,0.00935,64781.0,64780.0,0.005]
[1721232592886,0.00935,64781.0,64780.0,0.15938174]
[1721232593110,0.472448,64781.0,64780.0,0.005]
[1721232593540,0.00935,64781.0,64780.0,0.005]
[1721232593750,0.01035,64781.0,64780.0,0.005]
[1721232593961,0.01035,64781.0,64780.0,0.15938174]
[1721232594163,0.472448,64781.0,64780.0,0.005]
[1721232594409,0.78218,64781.0,64780.0,0.01]
[1721232594610,0.78218,64781.0,64780.0,0.015]
[1721232594611,0.01035,64781.0,64780.0,0.015]
[1721232594833,0.164716,64781.0,64780.0,0.015]
[1721232595033,0.01035,64781.0,64780.0,0.015]
[1721232595235,0.00935,64781.0,64780.0,0.01]
[1721232595452,0.00935,64781.0,64780.0,0.31874974]
[1721232595691,0.00935,64781.0,64780.0,0.16438174]
[1721232595894,0.00935,64781.0,64780.0,0.77018674]
[1721232596118,0.00935,64781.0,64780.0,0.30708174]
[1721232596336,0.00935,64781.0,64780.0,0.46144974]
[1721232596580,0.00935,64781.0,64780.0,0.30708174]
[1721232596811,0.163716,64781.0,64780.0,0.1527]
[1721232597077,0.78118,64781.0,64780.0,0.01]
[1721232597330,1.089912,64781.0,64780.0,0.01]
[1721232597552,1.910376,64781.0,64780.0,0.01]
[1721232597814,1.601644,64781.0,64780.0,0.01]
[1721232598077,1.96037531,64781.0,64780.0,0.01]
[1721232598335,1.080796,64767.0,64766.0,0.00028372]
[1721232598594,1.489595,64767.0,64766.0,0.00028372]
[1721232598829,1.565295,64767.0,64766.0,0.00028372]
[1721232599336,2.41027474,64767.0,64766.0,0.00028372]
[1721232599579,2.36027474,64767.0,64766.0,0.00028372]
[1721232599812,2.41027474,64767.0,64766.0,0.00028372]
[1721232600514,2.56922474,64767.0,64766.0,7.2e-07]
[1721232601021,2.56922474,64767.0,64766.0,0.001]
[1721232601022,2.58622474,64767.0,64766.0,0.001]
[1721232601272,2.74057431,64767.0,64766.0,0.001]
[1721232601535,2.73757431,64767.0,64766.0,0.001]
[1721232601775,2.27442574,64767.0,64766.0,0.001]
[1721232602005,2.27442574,64767.0,64731.0,0.46304871]
[1721232602006,0.05,64756.0,64731.0,0.46304871]
[1721232602258,2.33622874,64767.0,64748.0,0.46304871]
[1721232602259,0.463327,64749.0,64748.0,0.46304871]
[1721232602520,0.29727574,64755.0,64731.0,0.61743045]
[1721232602521,0.30889,64748.0,64731.0,0.61743045]
[1721232602788,0.102794,64747.0,64731.0,0.61743045]
[1721232603058,0.463455,64731.0,64730.0,0.0649]
[1721232603260,0.154497,64726.0,64724.0,0.0641]
[1721232603514,0.154497,64726.0,64725.0,0.15438174]
[1721232603694,0.463491,64726.0,64725.0,0.15438174]
[1721232603940,0.463491,64726.0,64724.0,0.0641]
[1721232603941,0.463498,64725.0,64724.0,0.0641]
[1721232604154,0.154497,64726.0,64724.0,0.21848174]
[1721232604365,0.308989,64728.0,64724.0,0.21848174]
[1721232604608,0.154495,64727.0,64724.0,0.21848174]
[1721232604819,0.308989,64728.0,64724.0,0.21848174]
[1721232604820,0.154497,64726.0,64724.0,0.21848174]
[1721232605028,0.308989,64728.0,64724.0,0.21848174]
[1721232605236,0.46304871,64742.0,64724.0,0.0641]
[1721232605237,0.463498,64725.0,64724.0,0.0641]
[1721232605444,0.0755,64737.0,64719.0,0.0802]
[1721232605445,0.154511,64720.0,64719.0,0.0802]
[1721232605651,0.463534,64720.0,64719.0,0.15438174]
[1721232606061,0.154511,64720.0,64719.0,0.15438174]
[1721232606270,0.463534,64720.0,64719.0,0.15438174]
[1721232607292,0.77257,64719.0,64718.0,0.0617]
[1721232607515,0.77257,64719.0,64716.0,0.000924]
[1721232607516,0.463555,64717.0,64716.0,0.000924]
[1721232607725,0.772592,64717.0,64716.0,0.000924]
[1721232608380,1.081629,64717.0,64716.0,0.000924]
[1721232608590,1.181629,64717.0,64716.0,0.000924]
[1721232609238,2.26515138,64717.0,64716.0,0.000924]
[1721232609448,2.25418474,64717.0,64716.0,0.001924]
[1721232610075,2.25418474,64717.0,64688.0,0.46304871]
[1721232610076,0.772927,64689.0,64688.0,0.46304871]
[1721232610284,0.463756,64689.0,64688.0,0.46304871]
[1721232610510,0.154597,64684.0,64669.0,0.48804871]
[1721232610724,0.309185,64686.0,64683.0,0.16355574]
[1721232610725,0.154594,64686.0,64683.0,0.16355574]
[1721232610985,0.154582,64691.0,64684.0,0.15438174]
[1721232611218,0.309125,64699.0,64684.0,0.30897874]
[1721232611433,0.1,64698.0,64684.0,0.15438174]
[1721232611641,0.1,64698.0,64688.0,0.001]
[1721232611642,0.155585,64689.0,64688.0,0.001]
[1721232611850,0.155585,64689.0,64688.0,0.15438174]
[1721232612058,0.001,64689.0,64688.0,0.15438174]
[1721232612513,0.309168,64690.0,64688.0,0.15438174]
[1721232612724,0.001,64691.0,64683.0,0.009174]
[1721232612725,0.154585,64689.0,64683.0,0.009174]
[1721232612939,0.001,64691.0,64686.0,0.154591]
[1721232613597,0.001,64689.0,64683.0,0.009174]
[1721232613837,0.001,64689.0,64687.0,0.15438174]
[1721232614054,0.001,64689.0,64683.0,0.009174]
[1721232614055,0.156585,64689.0,64688.0,0.000913]
[1721232614259,0.773927,64689.0,64688.0,0.000913]
[1721232614702,0.772927,64689.0,64688.0,0.000913]
[1721232615188,1.083098,64689.0,64688.0,0.000913]
[1721232615400,1.552569,64689.0,64688.0,0.000913]
[1721232615599,1.242398,64689.0,64688.0,0.000913]
[1721232615799,1.243398,64689.0,64688.0,0.000913]
[1721232616000,1.243398,64689.0,64688.0,0.000813]
[1721232616584,1.42077974,64689.0,64688.0,0.000813]
[1721232616759,1.72995074,64689.0,64688.0,0.000813]
[1721232616961,1.42077974,64689.0,64688.0,0.000813]
[1721232617337,1.41977974,64689.0,64688.0,0.000813]
[1721232617543,1.42077974,64689.0,64688.0,0.000813]
[1721232618420,0.873927,64689.0,64688.0,0.000813]
[1721232619064,1.183098,64689.0,64688.0,0.000813]
[1721232619664,1.64665074,64689.0,64688.0,0.000813]
[1721232619873,1.94575074,64689.0,64688.0,0.000813]
[1721232620942,1.99575074,64689.0,64688.0,0.000813]
[1721232621298,1.94575074,64689.0,64688.0,0.000813]
[1721232621703,1.94475074,64689.0,64688.0,0.000813]
[1721232621933,1.95875074,64689.0,64688.0,0.000813]
[1721232622107,2.91077174,64689.0,64688.0,0.000813]
[1721232622310,1.534227,64684.0,64683.0,0.009174]
[1721232622587,1.534227,64684.0,64683.0,1e-06]
[1721232622588,1.95080874,64684.0,64683.0,1e-06]
[1721232622822,1.95080874,64684.0,64669.0,0.025]
[1721232622823,0.603093,64670.0,64669.0,0.025]
[1721232623033,2.08436074,64670.0,64669.0,0.025]
[1721232623244,2.22721074,64670.0,64669.0,0.025]
[1721232623442,2.53317513,64670.0,64669.0,0.025]
[1721232623633,2.48647274,64670.0,64669.0,0.025]
[1721232623851,1.90111074,64670.0,64669.0,0.025]
[1721232624471,1.91511074,64670.0,64669.0,0.025]
[1721232624663,2.27437274,64670.0,64669.0,0.025]
[1721232624816,2.42872231,64670.0,64669.0,0.025]
[1721232625028,2.44272231,64670.0,64669.0,0.025]
[1721232625232,2.27437274,64670.0,64669.0,0.025]
[1721232625463,2.26037274,64670.0,64669.0,0.025]
[1721232625630,2.27437274,64670.0,64669.0,0.025]
[1721232625839,2.22437274,64670.0,64669.0,0.025]
[1721232626284,2.21037274,64670.0,64669.0,0.025]
[1721232626842,2.27437274,64670.0,64669.0,0.025]
[1721232627051,2.28837274,64670.0,64669.0,0.025]
[1721232627256,2.44272231,64670.0,64669.0,0.025]
[1721232627575,2.44272231,64670.0,64646.0,0.009185]
[1721232627576,1.675445,64660.0,64646.0,0.009185]
[1721232627807,0.05,64653.0,64646.0,0.009185]
[1721232627982,1.67903174,64653.0,64646.0,0.009185]
[1721232628180,2.13507713,64653.0,64646.0,0.009185]
[1721232628432,2.19219119,64653.0,64646.0,0.009185]
[1721232628645,0.14285,64647.0,64646.0,0.009185]
[1721232628843,1.14366174,64647.0,64646.0,0.009185]
[1721232628996,1.49969595,64647.0,64646.0,0.009185]
[1721232629173,2.27278952,64647.0,64646.0,0.009185]
[1721232629396,0.77318728,64633.0,64628.0,0.0001]
[1721232629590,0.464223,64624.0,64614.0,0.46304871]
[1721232629792,0.464238,64622.0,64612.0,4.711e-05]
[1721232629997,0.773752,64620.0,64612.0,4.711e-05]
[1721232630213,0.606602,64613.0,64612.0,4.711e-05]
[1721232630416,0.773837,64613.0,64612.0,4.711e-05]
[1721232630614,1.149937,64613.0,64612.0,4.711e-05]
[1721232630930,1.1434655,64613.0,64612.0,4.711e-05]
[1721232631144,1.60738224,64613.0,64612.0,4.711e-05]
[1721232631385,1.60738224,64613.0,64600.0,0.08011]
[1721232631386,1.218572,64601.0,64600.0,0.08011]
[1721232631585,1.218572,64601.0,64594.0,0.009185]
[1721232631586,1.176523,64595.0,64594.0,0.009185]
[1721232631801,0.464539,64580.0,64572.0,0.46304871]
[1721232632010,0.464539,64580.0,64567.0,0.0146013]
[1721232632011,1.150332,64580.0,64567.0,0.0146013]
[1721232632222,0.54130984,64580.0,64567.0,0.0146013]
[1721232632429,0.54130984,64580.0,64575.0,0.0774]
[1721232632430,0.11304832,64580.0,64575.0,0.0774]
[1721232632639,0.11304832,64580.0,64567.0,0.0146013]
[1721232632880,0.102794,64579.0,64568.0,0.15747867]
[1721232633091,0.102794,64579.0,64567.0,0.0146013]
[1721232633298,0.01304418,64578.0,64567.0,0.0146013]
[1721232633505,0.154874,64569.0,64567.0,0.0146013]
[1721232633708,0.01304418,64578.0,64567.0,0.0146013]
[1721232633951,0.003,64580.0,64568.0,0.15747882]
[1721232633952,0.0025831,64577.0,64568.0,0.15747882]
[1721232634180,0.01304418,64577.0,64572.0,0.154864]
[1721232634392,0.003,64580.0,64567.0,0.0146013]
[1721232634617,0.0025831,64579.0,64574.0,0.15486]
[1721232634827,0.0025831,64579.0,64567.0,0.0146013]
[1721232634828,0.01296656,64579.0,64575.0,0.30923974]
[1721232635039,0.003,64580.0,64576.0,0.0002109]
[1721232635490,0.003,64580.0,64568.0,0.0773109]
[1721232635696,0.309713,64576.0,64568.0,0.23169264]
[1721232635908,0.309671,64585.0,64569.0,0.15438174]
[1721232636113,0.01296761,64575.0,64572.0,0.154865]
[1721232636322,0.001,64578.0,64573.0,0.46431664]
[1721232636511,0.001,64578.0,64576.0,0.154855]
[1721232636751,0.001,64578.0,64573.0,0.15459264]
[1721232636752,0.0025831,64586.0,64584.0,0.154835]
[1721232636960,0.46304871,64585.0,64577.0,0.0622]
[1721232637176,0.0025831,64584.0,64579.0,0.154848]
[1721232637391,0.01071752,64585.0,64580.0,0.0002109]
[1721232637601,0.0025831,64591.0,64581.0,0.309687]
[1721232637817,0.0025831,64599.0,64583.0,0.309677]
[1721232638064,0.0025831,64600.0,64585.0,0.309668]
[1721232638273,0.0025831,64600.0,64586.0,0.1550419]
[1721232638274,0.154818,64592.0,64586.0,0.1550419]
[1721232638482,0.17717479,64601.0,64586.0,0.46404474]
[1721232638483,0.0025831,64591.0,64586.0,0.46404474]
[1721232638701,0.01071684,64591.0,64587.0,0.0002109]
[1721232638923,0.1025831,64598.0,64588.0,0.15438174]
[1721232638924,0.0025831,64597.0,64588.0,0.15438174]
[1721232639385,0.0025831,64597.0,64577.0,0.1434]
[1721232639386,0.01073067,64596.0,64577.0,0.1434]
[1721232639588,0.01073067,64596.0,64583.0,0.154838]
[1721232639589,0.154826,64589.0,64583.0,0.154838]
[1721232639812,0.0025831,64588.0,64584.0,0.30942864]
[1721232640029,0.01071916,64588.0,64584.0,0.30921774]
[1721232640255,0.07717479,64594.0,64585.0,0.0002109]
[1721232640256,0.154832,64586.0,64585.0,0.0002109]
[1721232640518,0.154832,64586.0,64577.0,0.1434]
[1721232640519,0.0025831,64585.0,64578.0,0.0002109]
[1721232640732,0.309679,64583.0,64578.0,0.0002109]
[1721232640948,0.01068738,64584.0,64577.0,0.1434]
[1721232641158,0.309652,64589.0,64577.0,0.1434]
[1721232641159,0.154849,64579.0,64578.0,0.0002109]
[1721232641374,0.1,64588.0,64579.0,0.154847]
[1721232641592,0.07717479,64608.0,64578.0,0.464553]
[1721232641593,0.00870777,64579.0,64578.0,0.464553]
[1721232641822,0.00870777,64579.0,64577.0,0.1434]
[1721232641823,0.154826,64589.0,64580.0,0.309693]
[1721232642034,0.15483,64587.0,64581.0,0.16682053]
[1721232642245,0.15483,64587.0,64581.0,0.01176763]
[1721232642455,0.0025831,64586.0,64581.0,0.16661063]
[1721232642660,0.00862704,64586.0,64582.0,0.0002109]
[1721232642868,0.00862704,64586.0,64585.0,0.457469]
[1721232643082,0.309566,64607.0,64586.0,0.05]
[1721232643308,0.154793,64603.0,64597.0,0.154805]
[1721232643513,0.154793,64603.0,64587.0,0.46403774]
[1721232643514,0.154801,64599.0,64593.0,0.154814]
[1721232643719,0.07717479,64600.0,64587.0,0.15438174]
[1721232644350,0.07717479,64600.0,64578.0,0.0789]
[1721232644351,0.07717479,64593.0,64578.0,0.0789]
[1721232644732,0.07717479,64593.0,64578.0,0.143]
[1721232644733,0.0071912,64592.0,64578.0,0.143]
[1721232644945,0.0071912,64592.0,64580.0,0.05]
[1721232645119,0.1025831,64596.0,64582.0,0.05]
[1721232645330,0.0025831,64596.0,64590.0,0.15482]
[1721232645577,0.0025831,64596.0,64578.0,0.143]
[1721232645791,0.0025831,64596.0,64579.0,0.46428964]
[1721232645792,0.07975789,64596.0,64579.0,0.46428964]
[1721232645999,0.07975789,64596.0,64582.0,0.154841]
[1721232646000,0.154828,64588.0,64582.0,0.154841]
[1721232646209,0.154803,64599.0,64589.0,0.309645]
[1721232646415,0.154795,64602.0,64590.0,0.0789]
[1721232646619,0.309581,64604.0,64591.0,0.15438174]
[1721232646835,0.154794,64602.0,64597.0,0.154805]
[1721232647037,0.309581,64604.0,64593.0,0.309629]
[1721232647038,0.154797,64601.0,64593.0,0.309629]
[1721232647244,0.309581,64604.0,64594.0,0.30919474]
[1721232647245,0.154798,64600.0,64594.0,0.30919474]
[1721232647647,0.00084,64605.0,64594.0,0.15438174]
[1721232647868,0.00084,64605.0,64599.0,0.309601]
[1721232648081,0.00084,64605.0,64602.0,0.154791]
[1721232648281,0.00084,64605.0,64601.0,0.154794]
[1721232648487,0.00084,64605.0,64600.0,0.52627474]
[1721232648774,0.00084,64605.0,64604.0,0.464367]
[1721232648986,0.00084,64605.0,64604.0,1.05972674]
[1721232649422,0.00084,64605.0,64604.0,1.00972674]
[1721232649622,0.00184,64605.0,64604.0,1.00972674]
[1721232649970,0.00184,64605.0,64604.0,1.42930474]
[1721232649971,0.00084,64605.0,64604.0,1.42930474]
[1721232650969,0.00184,64605.0,64604.0,1.43530474]
[1721232651884,0.00084,64605.0,64604.0,1.37846077]
[1721232652202,0.00084,64605.0,64604.0,1.74103877]
[1721232652203,0.00184,64605.0,64604.0,1.74103877]
[1721232652555,0.00184,64605.0,64604.0,2.26230477]
[1721232652758,0.00084,64605.0,64604.0,2.25930477]
[1721232652913,0.00184,64605.0,64604.0,2.57188277]